fUSD/lending_fUSD_20240419
["ID","MTS","AMOUNT","RATE_DAILY","PERIOD"]
[322964024,1713547899190,-1683.58,0.00014794,2]
[322964025,1713547899200,-500.0,0.00014794,2]
[322964026,1713547899210,-500.0,0.00014794,2]
[322964027,1713547899219,-500.0,0.00014794,2]
[322964028,1713547899229,-500.0,0.00014794,2]
[322964029,1713547899238,-500.0,0.00014794,2]
[322964030,1713547899248,-4332.15,0.00014794,2]
[322964031,1713547899257,-639.7,0.00014794,2]
[322964032,1713547899267,-1237.51,0.00014794,2]
[322964033,1713547899276,-2597.97,0.00014794,2]
[322964034,1713547899286,-1182.46,0.00014794,2]
[322964035,1713547899295,-15683.86,0.00014794,2]
[322964036,1713547899305,-3651.9,0.00014794,2]
[322964037,1713547899315,-2382.29,0.00014794,2]
[322964038,1713547899325,-7128.78,0.00014794,2]
[322964039,1713547899335,-500.44,0.00014794,2]
[322964040,1713547899345,-500.0,0.00014794,2]
[322964041,1713547899354,-500.0,0.00014794,2]
[322964042,1713547899364,-906.78,0.00014794,2]
[322964043,1713547899375,-936.01,0.00014794,2]
[322964044,1713547899384,-894.61,0.00014794,2]
[322964045,1713547899397,-3390.69,0.00014794,2]
[322964046,1713547899406,-500.0,0.00014794,2]
[322964047,1713547899415,-500.0,0.00014794,2]
[322964048,1713547899425,-500.0,0.00014794,2]
[322964049,1713547899434,-807.0,0.00014842,2]
[322964050,1713547899448,-609.0,0.00014842,2]
[322964051,1713547899457,-1950.0,0.00014842,2]
[322964052,1713547899467,-330.384,0.00014842,2]
[322964053,1713547899484,-465.924,0.00014842,2]
[322964054,1713547899493,-150.722,0.00014842,2]
[322964055,1713547899503,-1473.0,0.00014842,2]
[322964056,1713547899514,-3118.0,0.00014842,2]
[322964057,1713547899524,-2443.0,0.00014842,2]
[322964058,1713547899533,-399.703,0.00014842,2]
[322964059,1713547899543,-216.0,0.00014842,2]
[322964060,1713547899552,-1639.0,0.00014842,2]
[322964061,1713547899562,-150.62,0.00014842,2]
[322964062,1713547899571,-444.967,0.00014842,2]
[322964063,1713547899581,-1140.0,0.00014842,2]
[322964064,1713547899591,-355.0,0.00014842,2]
[322964065,1713547899600,-5726.0,0.00014842,2]
[322964066,1713547899610,-461.0,0.00014842,2]
[322964067,1713547899620,-5890.0,0.00014842,2]
[322964068,1713547899629,-2294.0,0.00014842,2]
[322964069,1713547899640,-994.811,0.00014842,2]
[322964070,1713547899655,-1406.758,0.00014842,2]
[322964071,1713547899665,-2600.78644205,0.000149,2]
[322964072,1713547899675,-438.73221204,0.000149,2]
[322964073,1713547899684,-181.11192666,0.000149,2]
[322964074,1713547899694,-25448.16585625,0.00014993,2]
[322964075,1713547899705,-3000.0,0.00015,2]
[322964076,1713547899715,-300.0,0.00015,2]
[322964077,1713547899832,-1000000.0,0.00015,2]
[322964078,1713547899842,-2500.0,0.00015,2]
[322964079,1713547899852,-217.264266,0.00015,2]
[322964080,1713547899862,-4470.56238206,0.00015,2]
[322964081,1713547899871,-482.0,0.00015,2]
[322964082,1713547899881,-255.10573292,0.00015,2]
[322964083,1713547899890,-754.0,0.00015,2]
[322964084,1713547899902,-529.34502087,0.00015,3]
[322964085,1713547899911,-18917.12328163,0.00015,2]
[322964086,1713547899922,-3085.0,0.00015,2]
[322964087,1713547899933,-1035.97516962,0.00015,2]
[322964088,1713547899942,-257.18585355,0.00015,2]
[322964089,1713547899953,-1250.0,0.00015,2]
[322964090,1713547899962,-150.0,0.00015034,2]
[322964091,1713547899971,-150.0,0.00015034,2]
[322964092,1713547899980,-500.0,0.00015068,2]
[322964093,1713547899989,-500.0,0.00015068,2]
[322964094,1713547899999,-500.0,0.00015068,2]
[322964095,1713547900009,-2110.51,0.00015068,2]
[322964096,1713547900018,-587.44,0.00015068,2]
[322964097,1713547900028,-885.07,0.00015068,2]
[322964098,1713547900037,-533.25,0.00015068,2]
[322964099,1713547900048,-500.0,0.00015068,2]
[322964100,1713547900062,-588.52,0.00015068,2]
[322964101,1713547900072,-500.0,0.00015068,2]
[322964102,1713547900081,-688.61,0.00015068,2]
[322964103,1713547900091,-500.0,0.00015068,2]
[322964104,1713547900100,-500.0,0.00015068,2]
[322964105,1713547900109,-1128.42,0.00015068,2]
[322964106,1713547900118,-1405.03,0.00015068,2]
[322964107,1713547900127,-676.86,0.00015068,2]
[322964108,1713547900137,-507.93,0.00015068,2]
[322964109,1713547900148,-1724.21,0.00015068,2]
[322964110,1713547900158,-500.0,0.00015068,2]
[322964111,1713547900168,-853.04,0.00015068,2]
[322964112,1713547900178,-1185.05,0.00015068,2]
[322964113,1713547900187,-500.0,0.00015068,2]
[322964114,1713547900196,-500.0,0.00015068,2]
[322964115,1713547900206,-868.94,0.00015068,2]
[322964116,1713547900215,-500.0,0.00015068,2]
[322964117,1713547900225,-649.32,0.00015068,2]
[322964118,1713547900234,-500.0,0.00015068,2]
[322964119,1713547900244,-783.57,0.00015068,2]
[322964120,1713547900254,-945.56,0.00015068,2]
[322964121,1713547900263,-2494.46,0.00015068,2]
[322964122,1713547900272,-500.0,0.00015068,2]
[322964123,1713547900281,-636.73,0.00015068,2]
[322964124,1713547900290,-500.0,0.00015068,2]
[322964125,1713547900300,-500.0,0.00015068,2]
[322964126,1713547900309,-585.90981726,0.00015068,2]
[322964127,1713547900318,-500.0,0.00015068,2]
[322964128,1713547900328,-500.0,0.00015068,2]
[322964129,1713547900337,-859.12,0.00015068,2]
[322964130,1713547900349,-500.0,0.00015068,2]
[322964131,1713547900358,-500.0,0.00015068,2]
[322964132,1713547900368,-690.43,0.00015068,2]
[322964133,1713547900377,-1352.48,0.00015068,2]
[322964134,1713547900386,-720.67,0.00015068,2]
[322964135,1713547900397,-1996.03,0.00015068,2]
[322964136,1713547900407,-823.18,0.00015068,2]
[322964137,1713547900416,-686.86,0.00015068,2]
[322964138,1713547900426,-1738.27,0.00015068,2]
[322964139,1713547900438,-791.6,0.00015068,2]
[322964140,1713547900449,-500.0,0.00015068,2]
[322964141,1713547900458,-693.35,0.00015068,2]
[322964142,1713547900468,-1572.34,0.00015068,2]
[322964143,1713547900478,-500.0,0.00015068,2]
[322964144,1713547900488,-500.0,0.00015068,2]
[322964145,1713547900498,-500.0,0.00015068,2]
[322964146,1713547900508,-508.11,0.00015068,2]
[322964147,1713547900518,-500.0,0.00015068,2]
[322964148,1713547900527,-818.65,0.00015068,2]
[322964149,1713547900537,-500.0,0.00015068,2]
[322964150,1713547900547,-813.18,0.00015068,2]
[322964151,1713547900557,-734.58,0.00015068,2]
[322964152,1713547900567,-500.0,0.00015068,2]
[322964153,1713547900576,-571.85,0.00015068,2]
[322964154,1713547900586,-1007.18,0.00015068,2]
[322964155,1713547900596,-702.98,0.00015068,2]
[322964156,1713547900606,-209.41259288,0.00015068,2]
[322964157,1713547900616,-500.0,0.00015068,2]
[322964158,1713547900626,-953.8,0.00015068,2]
[322964159,1713547900635,-732.08,0.00015068,2]
[322964160,1713547900645,-500.0,0.00015068,2]
[322964161,1713547900655,-587.33,0.00015068,2]
[322964162,1713547900664,-500.0,0.00015068,2]
[322964163,1713547900673,-1109.36,0.00015068,2]
[322964164,1713547900683,-500.0,0.00015068,2]
[322964165,1713547900692,-500.0,0.00015068,2]
[322964166,1713547900701,-500.0,0.00015068,2]
[322964167,1713547900710,-636.51,0.00015068,2]
[322964168,1713547900720,-533.92,0.00015068,2]
[322964169,1713547900730,-616.51,0.00015068,2]
[322964170,1713547900739,-500.0,0.00015068,2]
[322964171,1713547900748,-760.02,0.00015068,2]
[322964172,1713547900758,-500.0,0.00015068,2]
[322964173,1713547900767,-500.0,0.00015068,2]
[322964174,1713547900777,-633.07,0.00015068,2]
[322964175,1713547900788,-799.71,0.00015068,2]
[322964176,1713547900797,-500.0,0.00015068,2]
[322964177,1713547900806,-1421.13,0.00015068,2]
[322964178,1713547900816,-779.79,0.00015068,2]
[322964179,1713547900826,-1371.73,0.00015068,2]
[322964180,1713547900836,-731.74,0.00015068,2]
[322964181,1713547900846,-500.0,0.00015068,2]
[322964182,1713547900855,-1433.68,0.00015068,2]
[322964183,1713547900865,-500.0,0.00015068,2]
[322964184,1713547900875,-500.0,0.00015068,2]
[322964185,1713547900885,-611.22,0.00015068,2]
[322964186,1713547900897,-587.6,0.00015068,2]
[322964187,1713547900906,-802.08,0.00015068,2]
[322964188,1713547900916,-800.51,0.00015068,2]
[322964189,1713547900926,-570.42,0.00015068,2]
[322964190,1713547900935,-545.49,0.00015068,2]
[322964191,1713547900945,-622.53,0.00015068,2]
[322964192,1713547900955,-894.82,0.00015068,2]
[322964193,1713547900965,-665.31,0.00015068,2]
[322964194,1713547900976,-500.0,0.00015068,2]
[322964195,1713547900986,-500.0,0.00015068,2]
[322964196,1713547900995,-500.0,0.00015068,2]
[322964197,1713547901005,-500.0,0.00015068,2]
[322964198,1713547901016,-500.0,0.00015068,2]
[322964199,1713547901026,-1548.19,0.00015068,2]
[322964200,1713547901036,-1402.68,0.00015068,2]
[322964201,1713547901046,-696.4,0.00015068,2]
[322964202,1713547901056,-500.0,0.00015068,2]
[322964203,1713547901067,-500.0,0.00015068,2]
[322964204,1713547901077,-667.78,0.00015068,2]
[322964205,1713547901086,-1817.86,0.00015068,2]
[322964206,1713547901096,-1854.53,0.00015068,2]
[322964207,1713547901106,-1323.45,0.00015068,2]
[322964208,1713547901115,-497.31688859,0.00015068,2]
[322964209,1713547901125,-500.0,0.00015068,2]
[322964210,1713547901135,-500.0,0.00015068,2]
[322964211,1713547901147,-657.97,0.00015068,2]
[322964212,1713547901157,-500.0,0.00015068,2]
[322964213,1713547901166,-500.0,0.00015068,2]
[322964214,1713547901176,-500.0,0.00015068,2]
[322964215,1713547901186,-500.0,0.00015068,2]
[322964216,1713547901196,-500.0,0.00015068,2]
[322964217,1713547901205,-692.84,0.00015068,2]
[322964218,1713547901215,-500.0,0.00015068,2]
[322964219,1713547901224,-500.0,0.00015068,2]
[322964220,1713547901233,-525.97,0.00015068,2]
[322964221,1713547901243,-510.55,0.00015068,2]
[322964222,1713547901252,-500.0,0.00015068,2]
[322964223,1713547901262,-951.28,0.00015068,2]
[322964224,1713547901271,-500.0,0.00015068,2]
[322964225,1713547901283,-500.0,0.00015068,2]
[322964226,1713547901292,-839.77,0.00015068,2]
[322964227,1713547901302,-1185.12,0.00015068,2]
[322964228,1713547901312,-2157.71,0.00015068,2]
[322964229,1713547901321,-500.0,0.00015068,2]
[322964230,1713547901331,-500.0,0.00015068,2]
[322964231,1713547901341,-1409.98,0.00015068,2]
[322964232,1713547901350,-1042.32,0.00015068,2]
[322964233,1713547901360,-1175.16,0.00015068,2]
[322964234,1713547901370,-1187.74,0.00015068,2]
[322964235,1713547901379,-848.63,0.00015068,2]
[322964236,1713547901388,-500.0,0.00015068,2]
[322964237,1713547901400,-1924.82,0.00015068,2]
[322964238,1713547901409,-500.0,0.00015068,2]
[322964239,1713547901419,-500.0,0.00015068,2]
[322964240,1713547901429,-1021.09,0.00015068,2]
[322964241,1713547901439,-500.0,0.00015068,2]
[322964242,1713547901450,-1045.54,0.00015068,2]
[322964243,1713547901460,-500.0,0.00015068,2]
[322964244,1713547901469,-500.0,0.00015068,2]
[322964245,1713547901479,-2634.28,0.00015068,2]
[322964246,1713547901489,-1262.88,0.00015068,2]
[322964247,1713547901498,-1166.31,0.00015068,2]
[322964248,1713547901507,-375.07509391,0.00015068,2]
[322964249,1713547901518,-1332.33,0.00015068,2]
[322964250,1713547901528,-500.0,0.00015068,2]
[322964251,1713547901537,-712.59,0.00015068,2]
[322964252,1713547901547,-536.28,0.00015068,2]
[322964253,1713547901556,-791.73,0.00015068,2]
[322964254,1713547901567,-1210.59,0.00015068,2]
[322964255,1713547901902,-500.0,0.00015068,2]
[322964256,1713547901924,-1285.96,0.00015068,2]
[322964257,1713547901934,-500.0,0.00015068,2]
[322964258,1713547901944,-500.0,0.00015068,2]
[322964259,1713547901956,-500.0,0.00015068,2]
[322964260,1713547901966,-500.0,0.00015068,2]
[322964261,1713547901976,-500.0,0.00015068,2]
[322964262,1713547901986,-707.96,0.00015068,2]
[322964263,1713547901996,-930.65,0.00015068,2]
[322964264,1713547902006,-500.0,0.00015068,2]
[322964265,1713547902017,-876.01,0.00015068,2]
[322964266,1713547902027,-1043.23,0.00015068,2]
[322964267,1713547902037,-500.0,0.00015068,2]
[322964268,1713547902048,-500.0,0.00015068,2]
[322964269,1713547902057,-500.0,0.00015068,2]
[322964270,1713547902067,-1932.47,0.00015068,2]
[322964271,1713547902077,-500.0,0.00015068,2]
[322964272,1713547902086,-943.25,0.00015068,2]
[322964273,1713547902096,-591.53,0.00015068,2]
[322964274,1713547902105,-274.77478636,0.00015068,2]
[322964275,1713547902115,-500.0,0.00015068,2]
[322964276,1713547902125,-500.0,0.00015068,2]
[322964277,1713547902138,-508.04,0.00015068,2]
[322964278,1713547902150,-500.0,0.00015068,2]
[322964279,1713547902161,-667.44,0.00015068,2]
[322964280,1713547902171,-500.0,0.00015068,2]
[322964281,1713547902182,-1005.79,0.00015068,2]
[322964282,1713547902191,-1151.58,0.00015068,2]
[322964283,1713547902201,-666.71,0.00015068,2]
[322964284,1713547902211,-500.0,0.00015068,2]
[322964285,1713547902221,-844.29,0.00015068,2]
[322964286,1713547902230,-859.59,0.00015068,2]
[322964287,1713547902240,-827.06,0.00015068,2]
[322964288,1713547902249,-909.02,0.00015068,2]
[322964289,1713547902259,-500.0,0.00015068,2]
[322964290,1713547902268,-500.0,0.00015068,2]
[322964291,1713547902278,-626.73834101,0.00015068,2]
[322964292,1713547902288,-3128.94,0.00015068,2]
[322964293,1713547902298,-1084.83,0.00015068,2]
[322964294,1713547902308,-849.87,0.00015068,2]
[322964295,1713547902320,-165.04,0.00015068,2]
[322964296,1713547902330,-500.0,0.00015068,2]
[322964297,1713547902339,-500.0,0.00015068,2]
[322964298,1713547902350,-962.42,0.00015068,2]
[322964299,1713547902360,-500.0,0.00015068,2]
[322964300,1713547902370,-158.66811317,0.00015068,2]
[322964301,1713547902380,-500.0,0.00015068,2]
[322964302,1713547902390,-500.0,0.00015068,2]
[322964303,1713547902402,-500.0,0.00015068,2]
[322964304,1713547902412,-500.0,0.00015068,2]
[322964305,1713547902422,-1106.42,0.00015068,2]
[322964306,1713547902432,-710.41,0.00015068,2]
[322964307,1713547902445,-500.0,0.00015068,2]
[322964308,1713547902455,-860.99,0.00015068,2]
[322964309,1713547902465,-574.75146149,0.00015068,2]
[322964310,1713547902475,-533.1,0.00015068,2]
[322964311,1713547902486,-1532.66,0.00015068,2]
[322964312,1713547902496,-1058.74,0.00015068,2]
[322964313,1713547902507,-500.0,0.00015068,2]
[322964314,1713547902522,-500.0,0.00015068,2]
[322964315,1713547902532,-356.37058711,0.00015068,2]
[322964316,1713547902542,-1991.95,0.00015068,2]
[322964317,1713547902552,-917.22,0.00015068,2]
[322964318,1713547902562,-1677.63,0.00015068,2]
[322964319,1713547902571,-500.0,0.00015068,2]
[322964320,1713547902582,-1495.03,0.00015068,2]
[322964321,1713547902592,-500.0,0.00015068,2]
[322964322,1713547902602,-500.0,0.00015068,2]
[322964323,1713547902613,-1437.08,0.00015068,2]
[322964324,1713547902622,-1221.32,0.00015068,2]
[322964325,1713547902632,-500.0,0.00015068,2]
[322964326,1713547902642,-894.68,0.00015068,2]
[322964327,1713547902655,-500.0,0.00015068,2]
[322964328,1713547902665,-500.0,0.00015068,2]
[322964329,1713547902675,-500.0,0.00015068,2]
[322964330,1713547902684,-1958.47,0.00015068,2]
[322964331,1713547902694,-2134.27,0.00015068,2]
[322964332,1713547902705,-1468.38,0.00015068,2]
[322964333,1713547902715,-1385.58,0.00015068,2]
[322964334,1713547902725,-1055.95,0.00015068,2]
[322964335,1713547902735,-500.0,0.00015068,2]
[322964336,1713547902745,-500.0,0.00015068,2]
[322964337,1713547902754,-850.7,0.00015068,2]
[322964338,1713547902764,-500.0,0.00015068,2]
[322964339,1713547902773,-500.0,0.00015068,2]
[322964340,1713547902783,-1613.06,0.00015068,2]
[322964341,1713547902793,-1869.43,0.00015068,2]
[322964342,1713547902802,-927.53,0.00015068,2]
[322964343,1713547902811,-500.0,0.00015068,2]
[322964344,1713547902821,-1137.3,0.00015068,2]
[322964345,1713547902831,-1531.48,0.00015068,2]
[322964346,1713547902841,-729.51,0.00015068,2]
[322964347,1713547902852,-867.54,0.00015068,2]
[322964348,1713547902862,-500.0,0.00015068,2]
[322964349,1713547902872,-591.76,0.00015068,2]
[322964350,1713547902882,-500.0,0.00015068,2]
[322964351,1713547902892,-918.65,0.00015068,2]
[322964352,1713547902904,-500.0,0.00015068,2]
[322964353,1713547902913,-500.0,0.00015068,2]
[322964354,1713547902923,-2570.17,0.00015068,2]
[322964355,1713547902932,-500.0,0.00015068,2]
[322964356,1713547902941,-1851.41,0.00015068,2]
[322964357,1713547902951,-500.0,0.00015068,2]
[322964358,1713547902961,-500.0,0.00015068,2]
[322964359,1713547902970,-500.0,0.00015068,2]
[322964360,1713547902980,-717.49,0.00015068,2]
[322964361,1713547902990,-1190.81,0.00015068,2]
[322964362,1713547903000,-960.45,0.00015068,2]
[322964363,1713547903010,-500.0,0.00015068,2]
[322964364,1713547903021,-549.94,0.00015068,2]
[322964365,1713547903031,-500.0,0.00015068,2]
[322964366,1713547903041,-1956.81,0.00015068,2]
[322964367,1713547903051,-500.0,0.00015068,2]
[322964368,1713547903061,-765.42,0.00015068,2]
[322964369,1713547903071,-739.43,0.00015068,2]
[322964370,1713547903081,-1398.96,0.00015068,2]
[322964371,1713547903092,-500.0,0.00015068,2]
[322964372,1713547903102,-500.0,0.00015068,2]
[322964373,1713547903112,-2103.77,0.00015068,2]
[322964374,1713547903123,-1685.66,0.00015068,2]
[322964375,1713547903133,-500.0,0.00015068,2]
[322964376,1713547903143,-1256.68,0.00015068,2]
[322964377,1713547903155,-500.0,0.00015068,2]
[322964378,1713547903165,-1117.43,0.00015068,2]
[322964379,1713547903174,-1052.85,0.00015068,2]
[322964380,1713547903184,-1921.77,0.00015068,2]
[322964381,1713547903194,-772.1,0.00015068,2]
[322964382,1713547903204,-500.0,0.00015068,2]
[322964383,1713547903214,-500.0,0.00015068,2]
[322964384,1713547903224,-631.7,0.00015068,2]
[322964385,1713547903233,-2964.49,0.00015068,2]
[322964386,1713547903243,-518.79699599,0.00015068,2]
[322964387,1713547903253,-1253.8,0.00015068,2]
[322964388,1713547903262,-1378.32,0.00015068,2]
[322964389,1713547903272,-807.54,0.00015068,2]
[322964390,1713547903282,-1081.19,0.00015068,2]
[322964391,1713547903292,-815.96,0.00015068,2]
[322964392,1713547903301,-1049.59,0.00015068,2]
[322964393,1713547903311,-741.66,0.00015068,2]
[322964394,1713547903321,-1845.52,0.00015068,2]
[322964395,1713547903332,-620.21826104,0.00015068,2]
[322964396,1713547903343,-2620.88,0.00015068,2]
[322964397,1713547903353,-1780.73,0.00015068,2]
[322964398,1713547903363,-2723.48,0.00015068,2]
[322964399,1713547903372,-1417.69,0.00015068,2]
[322964400,1713547903382,-1358.87,0.00015068,2]
[322964401,1713547903392,-552.72,0.00015068,2]
[322964402,1713547903405,-500.0,0.00015068,2]
[322964403,1713547903415,-735.73,0.00015068,2]
[322964404,1713547903425,-500.0,0.00015068,2]
[322964405,1713547903435,-1288.14,0.00015068,2]
[322964406,1713547903448,-500.0,0.00015068,2]
[322964407,1713547903458,-500.0,0.00015068,2]
[322964408,1713547903468,-504.98,0.00015068,2]
[322964409,1713547903479,-1067.84,0.00015068,2]
[322964410,1713547903489,-1255.87,0.00015068,2]
[322964411,1713547903498,-500.0,0.00015068,2]
[322964412,1713547903508,-500.0,0.00015068,2]
[322964413,1713547903519,-1672.8,0.00015068,2]
[322964414,1713547903530,-1584.31,0.00015068,2]
[322964415,1713547903540,-500.0,0.00015068,2]
[322964416,1713547903551,-500.0,0.00015068,2]
[322964417,1713547903560,-1836.33,0.00015068,2]
[322964418,1713547903569,-537.61,0.00015068,2]
[322964419,1713547903581,-709.72,0.00015068,2]
[322964420,1713547903591,-500.0,0.00015068,2]
[322964421,1713547903600,-550.0,0.00015068,2]
[322964422,1713547903611,-500.0,0.00015068,2]
[322964423,1713547903620,-1262.36,0.00015068,2]
[322964424,1713547903630,-500.0,0.00015068,2]
[322964425,1713547903640,-1342.14,0.00015068,2]
[322964426,1713547903651,-907.63,0.00015068,2]
[322964427,1713547903661,-2176.51,0.00015068,2]
[322964428,1713547903671,-500.0,0.00015068,2]
[322964429,1713547903680,-1204.36,0.00015068,2]
[322964430,1713547903690,-2283.41,0.00015068,2]
[322964431,1713547903699,-567.88,0.00015068,2]
[322964432,1713547903709,-481.95661911,0.00015068,2]
[322964433,1713547903718,-984.59,0.00015068,2]
[322964434,1713547903728,-669.36,0.00015068,2]
[322964435,1713547903738,-782.81,0.00015068,2]
[322964436,1713547903747,-533.61,0.00015068,2]
[322964437,1713547903757,-1288.58,0.00015068,2]
[322964438,1713547903766,-500.0,0.00015068,2]
[322964439,1713547903776,-749.22,0.00015068,2]
[322964440,1713547903784,-500.0,0.00015068,2]
[322964441,1713547903794,-1347.98,0.00015068,2]
[322964442,1713547903803,-500.0,0.00015068,2]
[322964443,1713547903813,-1496.13,0.00015068,2]
[322964444,1713547903822,-776.56,0.00015068,2]
[322964445,1713547903832,-1096.01,0.00015068,2]
[322964446,1713547903843,-500.0,0.00015068,2]
[322964447,1713547903853,-500.0,0.00015068,2]
[322964448,1713547903863,-969.2,0.00015068,2]
[322964449,1713547903872,-1194.99,0.00015068,2]
[322964450,1713547903882,-1621.12,0.00015068,2]
[322964451,1713547903891,-1157.29,0.00015068,2]
[322964452,1713547903901,-573.44,0.00015068,2]
[322964453,1713547903910,-1092.41,0.00015068,2]
[322964454,1713547903919,-500.0,0.00015068,2]
[322964455,1713547903929,-984.48,0.00015068,2]
[322964456,1713547903939,-1606.09,0.00015068,2]
[322964457,1713547903948,-500.0,0.00015068,2]
[322964458,1713547903957,-509.93,0.00015068,2]
[322964459,1713547903967,-2406.42,0.00015068,2]
[322964460,1713547903977,-2066.12,0.00015068,2]
[322964461,1713547903987,-500.0,0.00015068,2]
[322964462,1713547903997,-500.0,0.00015068,2]
[322964463,1713547904006,-500.0,0.00015068,2]
[322964464,1713547904017,-1808.05,0.00015068,2]
[322964465,1713547904027,-500.0,0.00015068,2]
[322964466,1713547904036,-500.0,0.00015068,2]
[322964467,1713547904045,-1231.43,0.00015068,2]
[322964468,1713547904056,-1260.52,0.00015068,2]
[322964469,1713547904066,-1235.4,0.00015068,2]
[322964470,1713547904076,-531.33,0.00015068,2]
[322964471,1713547904085,-500.0,0.00015068,2]
[322964472,1713547904094,-599.56,0.00015068,2]
[322964473,1713547904104,-1097.83,0.00015068,2]
[322964474,1713547904113,-500.0,0.00015068,2]
[322964475,1713547904122,-2567.39,0.00015068,2]
[322964476,1713547904131,-1521.18,0.00015068,2]
[322964477,1713547904141,-737.68,0.00015068,2]
[322964478,1713547904152,-500.0,0.00015068,2]
[322964479,1713547904161,-500.0,0.00015068,2]
[322964480,1713547904170,-1429.5,0.00015068,2]
[322964481,1713547904180,-500.0,0.00015068,2]
[322964482,1713547904189,-500.0,0.00015068,2]
[322964483,1713547904199,-500.0,0.00015068,2]
[322964484,1713547904209,-609.78,0.00015068,2]
[322964485,1713547904219,-946.74,0.00015068,2]
[322964486,1713547904228,-1147.96,0.00015068,2]
[322964487,1713547904237,-917.99,0.00015068,2]
[322964488,1713547904247,-590.73,0.00015068,2]
[322964489,1713547904257,-1353.39,0.00015068,2]
[322964490,1713547904267,-645.77,0.00015068,2]
[322964491,1713547904276,-500.0,0.00015068,2]
[322964492,1713547904285,-991.95,0.00015068,2]
[322964493,1713547904294,-1531.51,0.00015068,2]
[322964494,1713547904304,-500.0,0.00015068,2]
[322964495,1713547904313,-614.33,0.00015068,2]
[322964496,1713547904322,-500.0,0.00015068,2]
[322964497,1713547904331,-547.32,0.00015068,2]
[322964498,1713547904340,-1659.79,0.00015068,2]
[322964499,1713547904452,-1683.91,0.00015068,2]
[322964500,1713547904463,-727.72,0.00015068,2]
[322964501,1713547904472,-554.76,0.00015068,2]
[322964502,1713547904482,-2633.24,0.00015068,2]
[322964503,1713547904493,-541.98,0.00015068,2]
[322964504,1713547904503,-1541.82,0.00015068,2]
[322964505,1713547904513,-1982.78,0.00015068,2]
[322964506,1713547904522,-500.0,0.00015068,2]
[322964507,1713547904533,-1879.91,0.00015068,2]
[322964508,1713547904542,-2067.07,0.00015068,2]
[322964509,1713547904552,-500.0,0.00015068,2]
[322964510,1713547904561,-925.07,0.00015068,2]
[322964511,1713547904571,-2089.21,0.00015068,2]
[322964512,1713547904581,-2571.24,0.00015068,2]
[322964513,1713547904590,-500.0,0.00015068,2]
[322964514,1713547904599,-920.34,0.00015068,2]
[322964515,1713547904609,-396.5,0.00015068,2]
[322964516,1713547904618,-733.19,0.00015068,2]
[322964517,1713547904627,-1286.35,0.00015068,2]
[322964518,1713547904636,-738.14,0.00015068,2]
[322964519,1713547904646,-648.77,0.00015068,2]
[322964520,1713547904656,-1793.39,0.00015068,2]
[322964521,1713547904665,-1073.53,0.00015068,2]
[322964522,1713547904674,-501.84,0.00015068,2]
[322964523,1713547904683,-620.08,0.00015068,2]